bitfinex/quotes_ETHUSD_20250603
["timestamp","ask_amount","ask_price","bid_price","bid_amount"]
[1748989915396,0.8103,2603.0,2602.5,1.7]
[1748989915908,0.8103,2602.8,2602.0,8.0]
[1748989916085,0.8103,2602.8,2602.4,1.7]
[1748989917684,0.8103,2602.8,2601.9,0.3745]
[1748989918023,0.8103,2602.8,2602.4,1.7]
[1748989918187,0.43601043,2602.8,2602.4,1.7]
[1748989919795,0.43601043,2602.8,2602.4,4.95690338]
[1748989919989,0.43601043,2602.8,2602.2,3.25690338]
[1748989920184,0.43601043,2602.8,2602.3,1.7]
[1748989922250,0.43601043,2602.8,2602.2,8.0]
[1748989922407,0.43601043,2602.8,2602.4,1.7]
[1748989923410,0.43601043,2602.8,2602.4,2.4488]
[1748989923993,0.43601043,2602.8,2602.4,1.7]
[1748989928542,0.43601043,2602.8,2602.5,1.695]
[1748989928903,0.8223,2603.1,2602.7,3.25690338]
[1748989929304,3.25690338,2604.0,2602.8,16.66287038]
[1748989929305,0.02,2603.9,2602.8,16.66287038]
[1748989929544,0.02,2603.9,2603.2,3.25690338]
[1748989929725,0.8223,2603.8,2603.3,1.695]
[1748989930403,0.8223,2603.8,2603.4,4.95190338]
[1748989930740,0.8223,2603.8,2603.5,1.695]
[1748989931505,0.8223,2603.8,2603.6,1.695]
[1748989936842,0.8223,2603.8,2602.9,8.0]
[1748989937050,0.8223,2603.8,2603.0,1.695]
[1748989937607,0.8223,2603.8,2603.0,8.43766314]
[1748989939745,0.8223,2603.8,2603.1,1.695]
[1748989942674,0.15415417,2604.4,2603.7,6.74266314]
[1748989942821,0.7924,2604.3,2603.8,1.695]
[1748989943133,0.7924,2604.3,2603.9,1.695]
[1748989943571,0.7924,2604.3,2603.1,1.39092776]
[1748989943774,0.7924,2604.3,2603.5,0.37424597]
[1748989943977,0.7924,2604.3,2603.6,1.695]
[1748989944124,0.7924,2604.3,2603.7,1.695]
[1748989944324,0.7924,2604.3,2603.8,1.695]
[1748989944635,0.7424,2604.3,2603.8,1.695]
[1748989945324,0.7424,2604.3,2603.5,0.43441029]
[1748989945668,0.7424,2604.3,2603.5,0.38441029]
[1748989945835,0.7424,2604.3,2603.6,1.695]
[1748989946041,0.7424,2604.3,2603.7,1.695]
[1748989946367,0.7424,2604.3,2603.8,1.695]
[1748989947226,0.7424,2604.3,2603.9,1.695]
[1748989947430,0.7424,2604.3,2604.0,1.695]
[1748989947650,0.7424,2604.3,2603.1,6.74266314]
[1748989947866,0.7424,2604.3,2603.2,10.75343634]
[1748989948212,0.7424,2604.3,2603.2,11.13193912]
[1748989948567,0.7424,2604.3,2603.3,1.694]
[1748989949179,0.7424,2604.3,2603.2,9.43693912]
[1748989949382,0.7424,2604.3,2603.4,1.694]
[1748989949582,0.7424,2604.3,2603.4,3.60709391]
[1748989950049,0.15415417,2604.4,2603.4,10.34975705]
[1748989950247,0.15415417,2604.4,2603.4,1.91309391]
[1748989950489,0.15415417,2604.4,2603.5,1.694]
[1748989950490,0.8214,2604.3,2603.5,1.694]
[1748989950896,0.8214,2604.3,2602.8,8.94505484]
[1748989951095,0.8214,2604.3,2603.0,10.0]
[1748989951296,0.8214,2604.3,2602.9,1.694]
[1748989951600,0.8214,2604.3,2603.1,8.0]
[1748989951773,0.8214,2604.3,2603.2,1.47426631]
[1748989955588,0.8214,2604.3,2603.4,8.0]
[1748989956761,0.8214,2604.3,2603.5,1.694]
[1748989957598,0.15415417,2604.4,2603.5,1.694]
[1748989957891,0.758,2604.3,2603.5,9.694]
[1748989958208,0.758,2604.3,2603.6,1.76646815]
[1748989958779,0.758,2604.3,2603.6,9.76646815]
[1748989958979,0.758,2604.3,2603.7,1.692]
[1748989959591,0.758,2604.3,2603.8,1.692]
[1748989961293,0.758,2604.3,2603.3,1.22801834]
[1748989961493,0.758,2604.3,2603.4,2.76222847]
[1748989962725,0.758,2604.3,2603.5,1.692]
[1748989962889,0.758,2604.3,2603.5,9.692]
[1748989963089,0.758,2604.3,2603.5,1.692]
[1748989966933,0.758,2604.3,2603.4,1.07022847]
[1748989967130,0.7679,2604.2,2603.5,1.692]
[1748989967312,0.7679,2604.0,2603.5,1.692]
[1748989967527,0.7679,2604.0,2603.6,1.692]
[1748989967692,0.7679,2604.0,2603.7,1.692]
[1748989975358,0.8141,2603.9,2603.7,1.692]
[1748989978761,0.8141,2603.9,2602.9,11.24143751]
[1748989978960,1.21965375,2603.9,2603.1,8.0]
[1748989980650,1.21965375,2603.9,2603.0,2.32905133]
[1748989982435,0.8282,2603.1,2603.0,1.692]
[1748989982847,0.8282,2603.1,2602.5,1.692]
[1748989983027,3.24143751,2602.9,2602.5,1.692]
[1748989983336,0.7746,2602.6,2602.5,1.692]
[1748989986128,0.7897,2603.6,2602.5,1.692]
[1748989986349,0.7897,2603.3,2602.5,1.692]
[1748989986555,1.19281375,2603.3,2602.5,1.692]
[1748989988129,0.7897,2603.3,2602.6,8.0]
[1748989988940,0.809,2603.6,2603.0,8.0]
[1748989989139,0.809,2604.0,2603.1,1.691]
[1748989992970,0.809,2603.7,2603.0,1.691]
[1748990007800,0.7705,2603.4,2603.0,1.691]
[1748990008005,0.7705,2603.1,2602.5,1.691]
[1748990009295,4.01483869,2603.1,2602.5,1.691]
[1748990009832,3.24433869,2602.9,2602.6,1.691]
[1748990010236,3.24433869,2603.2,2602.6,1.691]
[1748990010934,0.7842,2602.9,2602.6,1.691]
[1748990014129,3.24433869,2603.0,2602.6,1.691]
[1748990014294,3.24433869,2603.5,2602.6,1.691]
[1748990014498,3.24433869,2603.3,2602.6,1.691]
[1748990015336,3.24433869,2602.9,2602.6,1.691]
[1748990016531,0.7515,2603.0,2602.6,1.691]
[1748990016940,3.24433869,2603.1,2602.6,1.691]
[1748990017238,0.8096,2603.2,2602.6,1.691]
[1748990018644,1.21499387,2603.2,2602.6,1.691]
[1748990018823,3.24433869,2602.9,2602.7,1.689]
[1748990019035,3.24433869,2602.9,2602.6,1.689]
[1748990020052,3.23845155,2602.9,2602.6,1.689]
[1748990022543,3.24433869,2603.1,2602.6,1.689]
[1748990028931,3.24433869,2602.9,2602.6,1.689]
[1748990035359,3.69027195,2603.1,2602.6,1.689]
[1748990035872,3.24433869,2603.6,2602.6,1.689]
[1748990036573,6.375,2603.7,2602.6,1.689]
[1748990036735,3.24433869,2603.5,2602.6,1.689]
[1748990039001,6.375,2603.7,2602.7,1.689]
[1748990039002,3.24433869,2603.3,2602.7,1.689]
[1748990039216,0.32443387,2603.2,2602.8,1.689]
[1748990039397,0.32443387,2603.2,2602.9,1.689]
[1748990040103,0.32443387,2603.2,2602.0,3.24433869]
[1748990040303,3.24433869,2603.3,2602.1,11.689]
[1748990040478,3.24433869,2603.3,2602.1,9.689]
[1748990041677,3.24433869,2603.1,2602.1,9.689]
[1748990041992,3.24433869,2603.1,2602.1,10.06336582]
[1748990042300,0.7563,2603.0,2602.1,10.06336582]
[1748990042506,3.24433869,2603.1,2602.2,1.00633658]
[1748990042714,0.7563,2603.2,2602.2,1.00633658]
[1748990043711,3.24433869,2603.1,2602.2,1.00633658]
[1748990044975,0.7847,2603.4,2602.2,1.00633658]
[1748990045317,3.24433869,2603.2,2602.2,1.00633658]
[1748990045484,3.24433869,2603.2,2602.3,1.22926615]
[1748990047615,0.7847,2602.9,2602.2,1.00633658]
[1748990048298,0.7847,2603.1,2602.2,1.00633658]
[1748990048471,0.7847,2603.1,2602.2,2.22929563]
[1748990049503,0.7847,2603.1,2602.2,1.00633658]
[1748990052432,0.7684,2603.4,2602.3,0.55]
[1748990052596,4.01273869,2603.4,2602.3,0.55]
[1748990052794,5.05121256,2603.4,2602.4,0.27792956]
[1748990054795,3.24433869,2603.2,2602.5,1.687]
[1748990055833,4.01273869,2603.4,2602.5,1.687]
[1748990056012,3.24433869,2603.5,2602.5,1.687]
[1748990059337,3.24433869,2603.3,2602.5,1.687]
[1748990059639,3.24433869,2603.3,2602.6,9.11878886]
[1748990061303,0.7741,2603.9,2602.6,9.11878886]
[1748990061630,3.24433869,2603.4,2602.6,1.11878886]
[1748990061834,3.24433869,2603.2,2602.7,1.687]
[1748990062132,3.24433869,2603.2,2602.8,1.687]
[1748990062338,3.24433869,2603.2,2602.4,1.50088861]
[1748990062486,3.24433869,2603.2,2602.5,1.687]
[1748990062688,3.24433869,2603.2,2602.6,0.31878886]
[1748990066596,3.24433869,2603.4,2602.6,0.31878886]
[1748990067028,3.24433869,2603.6,2602.7,0.55]
[1748990068721,3.24433869,2603.8,2602.8,18.0]
[1748990068935,3.26433869,2603.9,2602.9,2.23920978]
[1748990069328,3.26433869,2603.9,2603.0,0.55]
[1748990069637,3.26433869,2603.9,2603.1,9.687]
[1748990069837,0.02,2603.9,2603.1,1.687]
[1748990070012,0.02,2603.9,2603.2,8.0]
[1748990070214,0.02,2603.9,2603.4,8.0]
[1748990077331,0.02,2603.9,2603.4,11.84109456]
[1748990077849,0.02,2603.9,2603.4,11.8411242]
[1748990078832,0.02,2603.9,2603.5,0.55]
[1748990079035,0.02,2603.9,2603.6,8.0]
[1748990079265,0.02,2603.9,2603.7,2.64643668]
[1748990079688,0.02,2603.9,2603.8,8.0]
[1748990079897,3.39849286,2604.4,2603.8,8.0]
[1748990079898,0.15415417,2604.4,2603.9,0.55]
[1748990080183,0.15415417,2604.4,2603.7,0.96343668]
[1748990080489,0.15415417,2604.4,2603.8,2.57934367]
[1748990080842,0.15415417,2604.4,2603.8,6.41980526]
[1748990081260,0.15415417,2604.4,2604.1,8.0]
[1748990082073,0.15415417,2604.4,2603.9,12.39030511]
[1748990082247,0.15415417,2604.4,2603.9,5.34324497]
[1748990082460,0.15415417,2604.4,2604.0,0.83067673]
[1748990083263,0.15415417,2604.4,2604.0,4.67085406]
[1748990083454,0.15415417,2604.4,2604.0,4.670885]
[1748990083651,0.15415417,2604.4,2604.0,0.83067673]
[1748990083878,0.15415417,2604.4,2604.1,3.83998769]
[1748990084104,0.15415417,2604.4,2604.2,0.46706644]
[1748990085706,0.15415417,2604.4,2604.3,12.3898034]
[1748990085912,1.16449355,2605.6,2604.8,8.0]
[1748990086393,1.16449355,2605.6,2604.9,1.683]
[1748990086394,3.24433869,2605.5,2604.9,1.683]
[1748990086562,3.24433869,2605.5,2604.9,2.70406111]
[1748990086754,3.24433869,2605.5,2604.9,1.02106111]
[1748990086954,3.24433869,2605.5,2605.0,1.683]
[1748990087470,3.24433869,2605.5,2605.1,1.683]
[1748990087675,3.24433869,2605.5,2605.2,1.683]
[1748990087888,3.24433869,2605.5,2605.3,1.683]
[1748990088087,0.7594,2605.4,2605.3,1.683]
[1748990088289,1.19573322,2605.4,2605.3,1.683]
[1748990088594,0.7594,2605.3,2604.9,1.683]
[1748990088913,3.24433869,2605.0,2604.9,1.683]
[1748990089601,3.24433869,2605.0,2604.8,1.683]
[1748990092522,0.7594,2604.9,2604.8,1.683]
[1748990092676,1.15977387,2604.9,2604.8,1.683]
[1748990095333,0.7594,2604.9,2604.8,1.683]
[1748990096022,0.7594,2604.9,2604.5,8.287]
[1748990096524,3.24433869,2605.0,2604.6,1.683]
[1748990097203,3.24433869,2605.0,2604.5,8.287]
[1748990097418,3.24433869,2605.0,2604.6,1.683]
[1748990097597,3.65041256,2605.0,2604.7,1.683]
[1748990097798,0.40607387,2605.0,2604.7,1.683]
[1748990097998,3.24433869,2605.2,2604.7,1.683]
[1748990098498,0.7811,2605.3,2604.7,1.683]
[1748990098731,3.24433869,2605.2,2604.7,1.683]
[1748990099107,3.24433869,2605.2,2604.5,8.287]
[1748990099429,0.7938,2605.1,2604.6,1.683]
[1748990100136,0.7938,2605.1,2604.7,1.683]
[1748990101332,3.24433869,2605.0,2604.1,1.60493303]
[1748990101524,3.24433869,2605.0,2604.2,3.29444251]
[1748990101818,3.24433869,2605.0,2604.2,1.61144251]
[1748990102040,3.24433869,2605.0,2604.3,1.683]
[1748990102297,0.7938,2605.4,2604.4,3.24433869]
[1748990102538,0.7938,2605.4,2604.5,0.49273387]
[1748990102698,0.7938,2605.4,2604.6,3.24433869]
[1748990102904,0.35959355,2605.6,2604.6,3.24433869]
[1748990102905,0.35959355,2605.6,2604.8,3.83899295]
[1748990103120,0.35959355,2605.6,2604.9,1.683]
[1748990104446,0.35959355,2605.6,2604.9,5.52180556]
[1748990104605,0.35959355,2605.6,2605.0,1.2605172]
[1748990104812,0.35959355,2605.6,2605.1,1.683]
[1748990105427,0.35959355,2605.6,2604.7,12.38913456]
[1748990105624,0.35959355,2605.6,2604.6,3.48504277]
[1748990105840,0.35959355,2605.6,2604.8,1.683]
[1748990106037,0.7617,2605.5,2604.7,10.0]
[1748990106235,1.19876322,2605.5,2604.9,1.683]
[1748990106749,0.7617,2605.5,2604.9,1.683]
[1748990106908,0.35959355,2605.6,2604.9,1.683]
[1748990107646,0.35959355,2605.6,2604.9,5.52191526]
[1748990107849,0.35959355,2605.6,2604.9,1.683]
[1748990112250,0.35959355,2605.6,2604.8,3.24433869]
[1748990112436,0.35959355,2605.6,2605.0,1.68]
[1748990112647,0.824,2605.5,2605.0,1.68]
[1748990113457,0.35959355,2605.6,2605.1,0.55]
[1748990113675,0.35959355,2605.6,2605.5,8.73060796]
[1748990114024,0.35959355,2605.6,2605.5,1.68]
[1748990114263,0.35959355,2605.6,2605.2,8.283]
[1748990114574,0.35959355,2605.6,2605.5,1.68]
[1748990115733,0.35959355,2605.6,2605.2,9.1113]
[1748990115939,0.35959355,2605.6,2605.3,1.68]
[1748990119355,0.35959355,2605.6,2605.2,9.48782732]
[1748990119561,0.35959355,2605.6,2605.3,1.68]
[1748990120290,0.35959355,2605.6,2605.2,9.48782732]
[1748990120600,0.35959355,2605.6,2605.4,1.68]
[1748990121761,0.35959355,2605.6,2605.5,1.68]
[1748990122588,0.35959355,2605.6,2605.2,8.65952732]
[1748990122763,0.35959355,2605.6,2604.9,1.78830275]
[1748990123108,0.35959355,2605.6,2605.0,1.66306276]
[1748990123109,3.60393224,2605.6,2605.0,1.66306276]
[1748990123395,0.7669,2605.5,2605.0,1.68]
[1748990124403,0.7669,2605.5,2605.0,2.05747711]
[1748990124701,0.7669,2605.5,2605.1,1.68]
[1748990124850,0.7669,2605.5,2605.2,1.68]
[1748990129831,0.7669,2605.5,2605.2,1.68]
[1748990130029,0.35959355,2605.6,2605.2,1.88555003]
[1748990132131,0.35959355,2605.6,2605.2,5.72395776]
[1748990132431,0.35959355,2605.6,2605.3,3.83830355]
[1748990132838,0.35959355,2605.6,2605.5,3.83803492]
[1748990133141,0.02,2605.9,2605.6,8.0]
[1748990133444,0.02,2605.9,2605.7,1.68]
[1748990133942,0.02,2605.9,2605.8,1.68]
[1748990134443,0.02,2605.9,2605.4,9.21607428]
[1748990134645,0.02,2605.9,2605.8,1.68]
[1748990144547,0.02,2605.9,2605.8,9.68]
[1748990144747,0.02,2605.9,2605.8,11.35621455]
[1748990145789,1.97544802,2606.0,2605.8,11.35621455]
[1748990147387,1.97544802,2606.0,2605.9,3.24433869]
[1748990149291,1.97544802,2606.0,2605.9,1.678]
[1748990149687,0.8192,2605.9,2605.4,11.21607428]
[1748990149861,0.8192,2605.9,2605.5,3.1240413]
[1748990150588,0.8192,2605.9,2605.6,1.678]
[1748990150888,1.97544802,2606.0,2605.6,1.678]
[1748990151280,1.97544802,2606.0,2605.6,9.678]
[1748990151478,1.97544802,2606.0,2605.7,1.678]
[1748990156096,0.804,2605.9,2605.8,1.678]
[1748990158482,0.804,2605.9,2605.1,8.0]
[1748990158483,0.804,2605.9,2605.7,1.678]
[1748990159922,3.24433869,2605.8,2605.4,1.678]
[1748990160079,1.10053387,2605.7,2605.4,1.678]
[1748990160285,0.7761,2605.6,2605.4,1.678]
[1748990163024,3.23802151,2605.6,2605.4,1.678]
[1748990163326,3.23802151,2605.6,2605.0,0.38305817]
[1748990163327,0.763,2605.5,2605.0,1.678]
[1748990163509,0.763,2605.5,2604.8,8.282]
[1748990163510,0.763,2605.0,2604.5,1.678]
[1748990164027,0.763,2605.0,2604.1,0.02]
[1748990164028,3.23802151,2604.9,2604.1,0.02]
[1748990164196,3.23802151,2604.9,2604.3,1.678]
[1748990164197,0.7546,2604.8,2604.3,1.678]
[1748990165347,0.7546,2605.6,2604.4,10.0]
[1748990165548,0.7546,2605.6,2604.5,8.0]
[1748990165912,0.7546,2605.6,2604.3,2.06596573]
[1748990165913,0.7546,2605.6,2604.3,10.06596573]
[1748990166116,0.7546,2605.4,2604.3,10.06596573]
[1748990167152,0.7546,2605.4,2604.4,1.678]
[1748990168159,0.7546,2605.2,2604.4,1.678]
[1748990169150,0.7546,2605.2,2604.5,1.678]
[1748990169468,0.7546,2605.2,2604.6,1.678]
[1748990170152,0.7546,2605.2,2604.6,9.678]
[1748990170454,0.7546,2605.8,2604.8,8.0]
[1748990170653,0.7546,2605.8,2604.8,3.83899609]
[1748990170879,0.7546,2605.8,2604.7,11.83915653]
[1748990171374,0.7546,2605.8,2604.6,13.51728629]
[1748990171575,0.7546,2605.8,2604.6,9.678]
[1748990171859,0.7546,2605.8,2604.7,3.83914121]
[1748990173575,0.7546,2605.8,2604.6,13.51728283]
[1748990174349,0.7546,2605.8,2604.7,3.83906877]
[1748990175559,0.7546,2605.8,2604.7,8.0]
[1748990175765,0.7546,2605.8,2604.8,1.677]
[1748990177794,3.23802151,2605.7,2604.6,8.0]
[1748990177961,0.8168,2605.6,2604.9,1.677]
[1748990179285,0.8168,2605.6,2604.9,9.677]
[1748990180029,0.8168,2605.6,2605.0,1.677]
[1748990181746,0.8168,2605.9,2605.0,13.79871841]
[1748990181950,0.8168,2605.9,2605.2,10.55]
[1748990182200,0.8168,2605.9,2605.4,3.83810151]
[1748990182399,1.97544802,2606.0,2605.5,10.45434636]
[1748990182552,1.97544802,2606.0,2605.6,1.677]
[1748990184121,1.97544802,2606.0,2605.7,1.677]
[1748990184399,0.8041,2605.9,2605.7,1.677]
[1748990185301,0.8041,2605.8,2605.7,1.677]
[1748990187185,0.8041,2605.8,2605.5,1.677]
[1748990198906,0.8041,2605.8,2605.4,1.677]
[1748990200105,0.8041,2605.8,2605.0,1.16016687]
[1748990200305,0.8041,2605.8,2605.1,1.677]
[1748990200505,0.8099,2605.7,2605.1,1.677]
[1748990205925,0.8099,2605.7,2605.1,5.51562184]
[1748990206106,0.8099,2605.7,2605.1,15.51562184]
[1748990206337,0.8099,2605.7,2605.1,11.677]
[1748990208851,0.8099,2605.7,2605.1,15.5155141]
[1748990209151,0.8099,2605.7,2605.1,11.677]
[1748990213625,0.8099,2605.7,2605.1,1.677]
[1748990215556,0.8099,2605.7,2605.1,11.677]
[1748990217067,0.8099,2605.7,2605.1,1.677]
[1748990217561,0.8099,2605.7,2605.1,11.677]
[1748990217765,0.8099,2605.7,2605.1,1.677]
[1748990218265,0.8099,2605.7,2605.1,2.89018269]
[1748990220528,0.8099,2605.7,2605.1,1.21318269]
[1748990220762,0.8099,2605.7,2605.2,1.675]
[1748990222906,0.8099,2605.7,2605.2,2.88818269]
[1748990223101,0.7563,2605.9,2605.3,1.21318269]
[1748990223258,0.7563,2605.9,2605.5,3.87836]
[1748990223597,1.97544802,2606.0,2605.6,10.0]
[1748990224284,1.97544802,2606.0,2605.5,3.599836]
[1748990224469,1.97544802,2606.0,2605.5,3.83800356]
[1748990224662,1.97544802,2606.0,2605.4,15.05127727]
[1748990224863,1.97544802,2606.0,2605.6,10.0]
[1748990225196,1.97544802,2606.0,2605.5,1.21318269]
[1748990225410,1.97544802,2606.0,2605.5,5.05121075]
[1748990225772,0.7659,2606.6,2606.0,4.38723308]
[1748990226099,0.7659,2606.6,2605.9,1.21318269]
[1748990226302,0.7659,2606.6,2606.0,1.675]
[1748990227185,0.8123,2606.5,2606.0,1.675]
[1748990227589,3.23802151,2606.4,2606.0,1.675]
[1748990227788,0.32380215,2606.3,2606.0,1.675]
[1748990227995,0.8123,2606.2,2606.0,1.675]
[1748990228307,0.8123,2606.2,2605.4,1.16122487]
[1748990228603,0.80213092,2606.2,2605.5,1.675]
[1748990230071,0.80213092,2606.2,2605.6,1.675]
[1748990230980,0.80213092,2606.2,2605.4,1.16122487]
[1748990231182,8.32380215,2606.3,2605.4,1.16122487]
[1748990231183,3.23802151,2606.0,2605.4,1.16122487]
[1748990231501,3.23802151,2606.0,2605.5,1.673]
[1748990231707,0.8001,2605.7,2605.6,1.673]
[1748990232006,0.8001,2605.7,2605.5,1.673]
[1748990232310,3.23802151,2605.6,2604.9,8.281]
[1748990232605,0.8001,2605.5,2605.0,1.673]
[1748990234229,3.23802151,2605.2,2605.0,1.673]
[1748990234416,0.751,2605.1,2605.0,1.673]
[1748990238850,0.4783635,2606.9,2605.0,1.673]
[1748990238851,8.0,2605.8,2605.0,1.673]
[1748990238994,0.7898,2605.7,2605.0,1.673]
[1748990239322,0.7898,2605.5,2605.0,1.673]
[1748990245239,4.02782151,2605.5,2605.1,1.673]
[1748990245441,4.02782151,2605.5,2605.2,1.673]
[1748990247052,0.7983,2605.4,2604.4,8.283]
[1748990247347,0.7983,2605.4,2604.5,1.673]
[1748990247980,0.7983,2605.4,2604.4,8.283]
[1748990248181,3.23802151,2605.1,2604.5,1.673]
[1748990248468,0.7983,2605.0,2604.5,1.673]
[1748990252072,8.87898,2605.6,2604.6,1.673]
[1748990252073,0.7983,2604.8,2604.6,1.673]
[1748990252567,0.7983,2604.6,2604.3,0.38864732]
[1748990252767,3.23802151,2604.5,2604.1,1.693]
[1748990252977,0.7983,2604.4,2604.1,1.693]
[1748990253682,0.7678,2604.2,2604.1,1.693]
[1748990253992,8.7678,2604.2,2604.1,0.02]
[1748990254129,0.7678,2604.2,2604.1,0.40292649]
[1748990254336,0.39377158,2604.2,2604.1,0.18616563]
[1748990254568,3.23802151,2604.9,2604.1,0.18616563]
[1748990254732,8.32380215,2604.8,2604.2,0.16616563]
[1748990254935,8.32380215,2604.8,2604.3,0.16616563]
[1748990255237,8.32380215,2604.8,2604.1,0.02]
[1748990255476,8.32380215,2604.8,2604.1,0.40706831]
[1748990256173,0.32380215,2604.8,2604.1,0.40706831]
[1748990256600,0.32380215,2604.8,2604.2,1.674]
[1748990257073,0.7678,2604.7,2604.3,1.674]
[1748990257234,0.7678,2604.7,2603.6,8.284]
[1748990257235,0.7678,2604.7,2603.4,3.84112078]
[1748990257437,0.7678,2604.7,2603.5,10.0]
[1748990257875,0.7678,2604.7,2603.6,0.16614116]
[1748990258178,0.7678,2604.7,2603.3,13.84124263]
[1748990258337,0.7678,2604.7,2603.5,6.344]
[1748990258539,0.7678,2604.7,2603.5,6.72650464]
[1748990258738,1.20076237,2604.7,2603.5,6.72650464]
[1748990259244,0.8147,2604.6,2603.5,6.72650464]
[1748990262691,0.8147,2604.6,2603.4,9.62429]
[1748990263011,0.8147,2604.6,2603.5,9.957]
[1748990263348,0.8147,2604.6,2603.6,0.16619447]
[1748990263595,0.8062,2604.4,2603.5,10.33877395]
[1748990264485,3.23802151,2604.5,2603.5,10.33877395]
[1748990264684,0.55,2604.6,2603.5,10.33877395]
[1748990267506,0.831,2604.5,2603.5,10.33877395]
[1748990272199,0.831,2604.5,2603.5,14.17974258]
[1748990272551,0.831,2604.5,2603.6,0.15677543]
[1748990272839,0.831,2604.5,2603.5,10.33877395]
[1748990274838,3.23802151,2604.7,2603.5,10.33877395]
[1748990275419,3.23802151,2604.7,2603.6,0.15681508]
[1748990275720,3.23802151,2604.7,2603.5,10.33877395]
[1748990276944,3.23802151,2604.7,2603.6,0.15682101]
[1748990277125,0.32380215,2604.6,2603.5,10.33877395]
[1748990277740,0.7918,2604.5,2603.5,10.33877395]
[1748990278933,0.7918,2604.5,2603.5,2.05377395]
[1748990279133,0.7918,2604.5,2603.5,12.05377395]
[1748990279540,0.7918,2604.5,2603.5,2.05377395]
[1748990279736,0.7918,2604.5,2603.5,3.27093553]
[1748990280107,0.7918,2604.5,2603.6,3.84082356]
[1748990280305,0.7918,2604.5,2603.4,13.84106696]
[1748990280306,0.7918,2604.5,2603.7,1.672]
[1748990286835,0.7541,2604.4,2603.7,1.672]
[1748990290355,0.7541,2604.4,2603.8,1.672]
[1748990291533,0.7541,2604.4,2603.8,1.96149883]
[1748990296978,0.7541,2604.4,2603.9,1.67]
[1748990301692,0.7541,2604.4,2604.0,1.67]
[1748990306947,0.8175,2604.2,2604.0,1.67]
[1748990307153,1.22305215,2604.1,2604.0,1.67]
[1748990307767,0.8175,2604.1,2604.0,1.67]
[1748990312108,0.8175,2604.1,2603.5,0.38014499]
[1748990312414,0.8175,2604.1,2603.4,9.50898832]
[1748990312415,0.8175,2604.1,2603.6,1.67]
[1748990313902,0.8175,2604.1,2603.7,1.67]
[1748990314108,0.8175,2604.1,2603.8,1.67]
[1748990314421,0.8175,2604.1,2602.7,20.0]
[1748990314599,0.8175,2604.1,2603.0,19.573303]
[1748990314771,0.8175,2604.1,2602.9,5.00769285]
[1748990314975,0.8175,2604.1,2603.1,10.0]
[1748990315499,0.8175,2604.1,2603.0,9.034903]
[1748990316272,0.8175,2604.1,2602.9,1.55377848]
[1748990316610,0.8175,2604.1,2603.0,9.034903]
[1748990316784,0.8175,2604.1,2602.9,1.55377848]
[1748990317786,0.8175,2604.1,2602.9,1.34376472]
[1748990317991,0.8175,2604.1,2602.9,10.0]
[1748990318192,0.8175,2604.1,2603.0,10.0]
[1748990318404,0.8175,2604.1,2602.9,4.90600297]
[1748990318608,0.8175,2604.1,2603.0,3.720117]
[1748990319411,0.8175,2604.1,2603.1,10.0]
[1748990319622,0.8175,2604.1,2602.9,19.90977672]
[1748990319804,0.8175,2604.1,2603.0,5.231117]
[1748990320525,0.8175,2604.1,2603.0,3.720117]
[1748990322290,0.8175,2604.1,2602.9,1.35799175]
[1748990322625,0.8175,2604.1,2602.9,7.452671]
[1748990322780,0.8175,2604.1,2603.0,11.67]
[1748990323147,0.8175,2604.1,2603.0,1.67]
[1748990323323,0.40555215,2604.0,2603.0,1.67]
[1748990323496,0.7776,2603.9,2603.0,1.67]
[1748990323695,0.7776,2603.9,2603.0,2.89445845]
[1748990324634,0.7776,2603.9,2603.1,8.0]
[1748990325630,0.7776,2603.9,2603.0,2.89445845]
[1748990328533,0.7776,2603.9,2603.2,1.22445845]
[1748990328894,0.7776,2603.9,2603.5,10.0]
[1748990329098,0.7776,2603.9,2603.6,11.668]
[1748990329325,0.7776,2603.9,2603.6,1.668]
[1748990338551,0.7776,2603.9,2603.6,1.667]
[1748990341919,0.7776,2603.9,2603.2,8.287]
[1748990341920,3.23802151,2603.9,2603.2,8.287]
[1748990342159,3.23802151,2603.7,2603.2,9.954]
[1748990342343,0.7981,2603.6,2603.2,9.954]
[1748990343157,0.7981,2603.4,2603.2,1.667]
[1748990343765,0.7981,2603.4,2603.1,1.668]
[1748990344730,3.24376672,2603.5,2603.1,1.668]
[1748990344731,0.7549,2603.2,2603.1,1.668]
[1748990347566,0.7549,2603.2,2602.1,8.307]
[1748990347567,0.55,2603.1,2602.1,0.02]
[1748990347773,0.7546,2603.0,2602.3,1.668]
[1748990347990,0.7546,2603.0,2602.5,3.24376672]
[1748990348320,0.7546,2603.0,2602.7,3.24376672]
[1748990348920,0.7546,2603.0,2602.5,3.24376672]
[1748990349411,0.7546,2603.0,2602.3,1.668]
[1748990350423,0.7546,2603.0,2602.1,0.40213284]
[1748990350628,0.7546,2603.0,2602.2,1.668]
[1748990350826,0.7546,2602.7,2602.2,1.668]
[1748990354063,0.7546,2602.7,2602.1,0.02]
[1748990354365,0.7546,2602.7,2602.1,1.685]
[1748990362050,0.55,2602.6,2602.1,1.685]
[1748990362389,0.7669,2602.5,2602.1,1.685]
[1748990363662,0.7669,2602.5,2602.1,0.02]
[1748990364274,3.79376672,2602.4,2602.1,0.02]
[1748990364572,0.8071,2602.2,2602.1,0.02]
[1748990364775,1.3571,2602.2,2602.1,0.02]
[1748990365639,0.8071,2602.2,2602.1,0.02]